[Event "Late-Titled-Tuesday-Blitz-April-30-2024"]
[Site "Chess.com"]
[Date "2024.04.30"]
[Round "1"]
[White "Durarbayli"]
[Black "whiteglovethief"]
[Result "1-0"]
[WhiteElo "2935"]
[BlackElo "2499"]
[TimeControl "180+1"]
[EndTime "14:05:34 PDT"]
[Termination "Durarbayli won by resignation"]

1. e4 {[%clk 0:02:59.8]} 1... e6 {[%clk 0:02:55.7]} 2. d4 {[%clk 0:02:59.5]}
2... d5 {[%clk 0:02:55.7]} 3. e5 {[%clk 0:03:00.2]} 3... c5 {[%clk 0:02:55.5]}
4. c3 {[%clk 0:03:00.9]} 4... Nc6 {[%clk 0:02:54.9]} 5. Nf3 {[%clk 0:03:01.5]}
5... Bd7 {[%clk 0:02:53]} 6. Be2 {[%clk 0:03:01.2]} 6... cxd4 {[%clk 0:02:51.5]}
7. cxd4 {[%clk 0:03:00.9]} 7... Nge7 {[%clk 0:02:51.9]} 8. Na3 {[%clk
0:02:56.3]} 8... Nf5 {[%clk 0:02:51.2]} 9. Nc2 {[%clk 0:02:56.5]} 9... Rc8
{[%clk 0:02:50.6]} 10. O-O {[%clk 0:02:56.6]} 10... Qb6 {[%clk 0:02:49.7]} 11.
Kh1 {[%clk 0:02:55.8]} 11... Be7 {[%clk 0:02:45.2]} 12. Bd3 {[%clk 0:02:45.5]}
12... h5 {[%clk 0:02:35.6]} 13. Rb1 {[%clk 0:02:38.4]} 13... g6 {[%clk 0:02:30]}
14. b4 {[%clk 0:02:36.2]} 14... a6 {[%clk 0:02:28]} 15. a3 {[%clk 0:02:08.9]}
15... Na7 {[%clk 0:02:04.1]} 16. Bg5 {[%clk 0:01:55.1]} 16... Ba4 {[%clk
0:01:57.6]} 17. Bxe7 {[%clk 0:01:53.1]} 17... Kxe7 {[%clk 0:01:56.5]} 18. Qd2
{[%clk 0:01:51.7]} 18... Bxc2 {[%clk 0:01:47]} 19. Bxc2 {[%clk 0:01:50.8]} 19...
Nb5 {[%clk 0:01:27.4]} 20. Qg5+ {[%clk 0:01:41.4]} 20... Kd7 {[%clk 0:01:10.6]}
21. Bxf5 {[%clk 0:01:02.6]} 21... exf5 {[%clk 0:01:01.8]} 22. e6+ {[%clk
0:00:53.1]} 22... Qxe6 {[%clk 0:00:57.1]} 23. Rfe1 {[%clk 0:00:49.8]} 23... Qd6
{[%clk 0:00:55.5]} 24. Ne5+ {[%clk 0:00:49.2]} 1-0

[Event "Late-Titled-Tuesday-Blitz-April-30-2024"]
[Site "Chess.com"]
[Date "2024.04.30"]
[Round "1"]
[White "Bryanl106"]
[Black "financieru"]
[Result "1-0"]
[WhiteElo "2696"]
[BlackElo "2400"]
[TimeControl "180+1"]
[EndTime "14:05:36 PDT"]
[Termination "Bryanl106 won by resignation"]

1. e4 {[%clk 0:03:00.9]} 1... c5 {[%clk 0:02:58.8]} 2. Nf3 {[%clk 0:03:01.2]}
2... e6 {[%clk 0:02:59.5]} 3. d4 {[%clk 0:03:01.8]} 3... cxd4 {[%clk 0:03:00.4]}
4. Nxd4 {[%clk 0:03:02.5]} 4... a6 {[%clk 0:03:00.6]} 5. Bd3 {[%clk 0:02:58.7]}
5... d6 {[%clk 0:03:00.8]} 6. O-O {[%clk 0:02:58.2]} 6... Nf6 {[%clk 0:03:01.6]}
7. Kh1 {[%clk 0:02:55.5]} 7... Be7 {[%clk 0:03:01.4]} 8. Nc3 {[%clk 0:02:54]}
8... O-O {[%clk 0:03:01.9]} 9. f4 {[%clk 0:02:54.4]} 9... Qc7 {[%clk 0:03:01.4]}
10. Qe2 {[%clk 0:02:53.5]} 10... Nc6 {[%clk 0:03:00.1]} 11. Nxc6 {[%clk
0:02:53.5]} 11... bxc6 {[%clk 0:03:00.4]} 12. e5 {[%clk 0:02:53.8]} 12... Nd5
{[%clk 0:02:37.3]} 13. exd6 {[%clk 0:02:44.4]} 13... Bxd6 {[%clk 0:02:34.3]} 14.
Qh5 {[%clk 0:02:22.6]} 14... g6 {[%clk 0:02:30.4]} 15. Nxd5 {[%clk 0:02:21.4]}
15... cxd5 {[%clk 0:02:07.7]} 16. Qh6 {[%clk 0:02:19.9]} 16... Re8 {[%clk
0:02:00]} 17. Bd2 {[%clk 0:02:17.7]} 17... a5 {[%clk 0:01:57.7]} 18. Bc3 {[%clk
0:02:14.5]} 18... Bf8 {[%clk 0:01:48.9]} 19. Qg5 {[%clk 0:02:14]} 19... Bg7
{[%clk 0:01:20.9]} 20. Be5 {[%clk 0:02:09.1]} 20... Qa7 {[%clk 0:01:11.5]} 21.
Rf3 {[%clk 0:02:02.2]} 21... Ba6 {[%clk 0:01:00.2]} 22. Bxg7 {[%clk 0:01:49.1]}
22... Kxg7 {[%clk 0:01:01.1]} 23. Bxa6 {[%clk 0:01:44.1]} 23... Qxa6 {[%clk
0:00:59.1]} 24. Rh3 {[%clk 0:01:45]} 24... h5 {[%clk 0:00:34.9]} 25. Rxh5 {[%clk
0:01:40.4]} 25... Rh8 {[%clk 0:00:35.5]} 26. Qe5+ {[%clk 0:01:40.1]} 26... f6
{[%clk 0:00:35.8]} 27. Qc7+ {[%clk 0:01:40.4]} 27... Kg8 {[%clk 0:00:32.6]} 28.
Rxh8+ {[%clk 0:01:38.9]} 28... Kxh8 {[%clk 0:00:33.5]} 29. Qf7 {[%clk
0:01:31.1]} 29... e5 {[%clk 0:00:24.7]} 30. Qxg6 {[%clk 0:01:26.9]} 30... Rf8
{[%clk 0:00:19.9]} 31. fxe5 {[%clk 0:01:26.5]} 1-0

[Event "Late-Titled-Tuesday-Blitz-April-30-2024"]
[Site "Chess.com"]
[Date "2024.04.30"]
[Round "1"]
[White "only_strong_moves"]
[Black "duone"]
[Result "1-0"]
[WhiteElo "2723"]
[BlackElo "2416"]
[TimeControl "180+1"]
[EndTime "14:05:41 PDT"]
[Termination "only_strong_moves won by resignation"]

1. Nc3 {[%clk 0:03:00.9]} 1... d5 {[%clk 0:02:58.1]} 2. e4 {[%clk 0:03:01]} 2...
d4 {[%clk 0:02:55.1]} 3. Nce2 {[%clk 0:03:01.6]} 3... e5 {[%clk 0:02:54.8]} 4.
c3 {[%clk 0:03:02.3]} 4... Nc6 {[%clk 0:02:53.6]} 5. Ng3 {[%clk 0:03:02.8]} 5...
Nf6 {[%clk 0:02:53.1]} 6. Nf3 {[%clk 0:03:02.3]} 6... Bc5 {[%clk 0:02:48]} 7.
Bb5 {[%clk 0:03:01.1]} 7... Bd7 {[%clk 0:02:45.5]} 8. d3 {[%clk 0:03:00.3]} 8...
Qe7 {[%clk 0:02:41]} 9. O-O {[%clk 0:02:59.7]} 9... O-O {[%clk 0:02:40.8]} 10.
a3 {[%clk 0:02:57.5]} 10... a6 {[%clk 0:02:38.3]} 11. Bxc6 {[%clk 0:02:57.4]}
11... Bxc6 {[%clk 0:02:38.6]} 12. Nf5 {[%clk 0:02:57.1]} 12... Qe6 {[%clk
0:02:39]} 13. cxd4 {[%clk 0:02:56.9]} 13... exd4 {[%clk 0:02:39.2]} 14. N3xd4
{[%clk 0:02:57.4]} 14... Bxd4 {[%clk 0:02:39.3]} 15. Nxd4 {[%clk 0:02:58.3]}
15... Qd6 {[%clk 0:02:38.9]} 16. Nxc6 {[%clk 0:02:56.7]} 16... Qxc6 {[%clk
0:02:39]} 17. Qe2 {[%clk 0:02:55]} 17... Rad8 {[%clk 0:02:38.3]} 18. Be3 {[%clk
0:02:54.2]} 18... Rfe8 {[%clk 0:02:34.4]} 19. Rac1 {[%clk 0:02:53.4]} 19... Qd6
{[%clk 0:02:33.2]} 20. Rfd1 {[%clk 0:02:53.9]} 20... c6 {[%clk 0:02:28.9]} 21.
f3 {[%clk 0:02:53.1]} 21... Nh5 {[%clk 0:02:28]} 22. Qf2 {[%clk 0:02:50.4]}
22... Nf4 {[%clk 0:02:26.3]} 23. d4 {[%clk 0:02:50.3]} 23... f5 {[%clk
0:02:23.2]} 24. e5 {[%clk 0:02:45.1]} 24... Qh6 {[%clk 0:02:22.7]} 25. Qd2
{[%clk 0:02:45.2]} 25... g5 {[%clk 0:02:21.8]} 26. Bxf4 {[%clk 0:02:38.4]} 26...
gxf4 {[%clk 0:02:21.9]} 27. Qb4 {[%clk 0:02:36.7]} 27... Re6 {[%clk 0:02:14.3]}
28. Qxb7 {[%clk 0:02:35.2]} 28... Rg6 {[%clk 0:02:14.2]} 29. d5 {[%clk
0:02:29.4]} 29... Qh3 {[%clk 0:02:06.1]} 30. Rc2 {[%clk 0:02:14.5]} 30... Qxf3
{[%clk 0:02:03.7]} 31. Rf1 {[%clk 0:02:02.6]} 31... Qxd5 {[%clk 0:01:57.2]} 32.
Qe7 {[%clk 0:01:50.8]} 32... Qd4+ {[%clk 0:01:50.8]} 33. Kh1 {[%clk 0:01:49.7]}
33... Qd1 {[%clk 0:01:33.6]} 34. Rf2 {[%clk 0:01:39.4]} 34... Rd2 {[%clk
0:01:23.3]} 35. e6 {[%clk 0:01:31.7]} 35... f3 {[%clk 0:01:14.2]} 36. Qf7+
{[%clk 0:01:28.2]} 36... Kh8 {[%clk 0:01:12.2]} 37. Qf8+ {[%clk 0:01:26.5]}
37... Rg8 {[%clk 0:01:12.4]} 38. Qf6+ {[%clk 0:01:26.9]} 38... Rg7 {[%clk
0:01:12.9]} 39. gxf3 {[%clk 0:01:07.7]} 39... Qc2 {[%clk 0:01:04]} 40. e7 {[%clk
0:01:03.2]} 40... Re2 {[%clk 0:00:59.7]} 41. e8=Q+ {[%clk 0:01:01]} 41... Rxe8
{[%clk 0:00:58.6]} 42. Rxc2 {[%clk 0:01:01.9]} 42... Rg8 {[%clk 0:00:57.2]} 1-0

[Event "Late-Titled-Tuesday-Blitz-April-30-2024"]
[Site "Chess.com"]
[Date "2024.04.30"]
[Round "1"]
[White "Moltini"]
[Black "rezamahdavi2008"]
[Result "0-1"]
[WhiteElo "2498"]
[BlackElo "2928"]
[TimeControl "180+1"]
[EndTime "14:05:43 PDT"]
[Termination "rezamahdavi2008 won by resignation"]

1. d4 {[%clk 0:03:00.9]} 1... Nf6 {[%clk 0:02:53.4]} 2. c4 {[%clk 0:03:01.1]}
2... b6 {[%clk 0:02:42.9]} 3. Nc3 {[%clk 0:03:00.1]} 3... Bb7 {[%clk 0:02:36.6]}
4. Nf3 {[%clk 0:03:00.4]} 4... e6 {[%clk 0:02:28.2]} 5. a3 {[%clk 0:03:00.7]}
5... d5 {[%clk 0:02:24.7]} 6. Bg5 {[%clk 0:03:00.7]} 6... Be7 {[%clk 0:02:13.4]}
7. e3 {[%clk 0:02:59.1]} 7... O-O {[%clk 0:02:14]} 8. Rc1 {[%clk 0:02:58.7]}
8... Nbd7 {[%clk 0:02:13.7]} 9. Bd3 {[%clk 0:02:59]} 9... Ne4 {[%clk 0:02:02.4]}
10. Bf4 {[%clk 0:02:57.3]} 10... c5 {[%clk 0:01:43.7]} 11. O-O {[%clk
0:02:55.1]} 11... Rc8 {[%clk 0:01:43.6]} 12. Qe2 {[%clk 0:02:52.9]} 12... cxd4
{[%clk 0:01:37.4]} 13. exd4 {[%clk 0:02:50.8]} 13... Ndf6 {[%clk 0:01:36.4]} 14.
cxd5 {[%clk 0:02:49.6]} 14... Nxc3 {[%clk 0:01:34.4]} 15. Rxc3 {[%clk
0:02:45.9]} 15... Nxd5 {[%clk 0:01:35.1]} 16. Rxc8 {[%clk 0:02:45.5]} 16... Nxf4
{[%clk 0:01:28.5]} 17. Rxd8 {[%clk 0:02:06.5]} 17... Nxe2+ {[%clk 0:01:27.1]}
18. Bxe2 {[%clk 0:02:07.4]} 18... Rxd8 {[%clk 0:01:27]} 19. Rc1 {[%clk
0:02:07.8]} 19... Bd6 {[%clk 0:01:23.5]} 20. h3 {[%clk 0:02:05.8]} 20... Kf8
{[%clk 0:01:22.9]} 21. Kf1 {[%clk 0:02:06.1]} 21... Ke7 {[%clk 0:01:23.3]} 22.
Ne5 {[%clk 0:02:04.6]} 22... Bb8 {[%clk 0:01:16.2]} 23. Rd1 {[%clk 0:01:48.8]}
23... Rc8 {[%clk 0:01:13.6]} 24. Bf3 {[%clk 0:01:43.8]} 24... Ba6+ {[%clk
0:00:47]} 25. Be2 {[%clk 0:01:43.5]} 25... Bb7 {[%clk 0:00:39.7]} 26. Bf3 {[%clk
0:01:43.4]} 26... Bxf3 {[%clk 0:00:40.1]} 27. Nxf3 {[%clk 0:01:43.7]} 27... Rc2
{[%clk 0:00:37.9]} 28. Rd2 {[%clk 0:01:43.7]} 28... Rxd2 {[%clk 0:00:38.4]} 29.
Nxd2 {[%clk 0:01:44]} 29... Kd6 {[%clk 0:00:38.3]} 30. Ke2 {[%clk 0:01:44.4]}
30... Kd5 {[%clk 0:00:39.1]} 31. Kd3 {[%clk 0:01:44.6]} 31... b5 {[%clk
0:00:33.5]} 32. Ne4 {[%clk 0:01:43.6]} 32... f5 {[%clk 0:00:32.3]} 33. Nc3+
{[%clk 0:01:43.8]} 33... Kc6 {[%clk 0:00:33]} 34. d5+ {[%clk 0:01:35.6]} 34...
exd5 {[%clk 0:00:33.9]} 35. Kd4 {[%clk 0:01:36]} 35... a5 {[%clk 0:00:31.1]} 36.
Nxd5 {[%clk 0:01:35.8]} 36... Ba7+ {[%clk 0:00:31.6]} 37. Ke5 {[%clk 0:01:36.2]}
37... Bxf2 {[%clk 0:00:29]} 38. Ne7+ {[%clk 0:01:36.6]} 38... Kc5 {[%clk
0:00:28.7]} 39. Nxf5 {[%clk 0:01:37.5]} 39... Kc4 {[%clk 0:00:27.3]} 40. Nxg7
{[%clk 0:01:32.8]} 40... Bd4+ {[%clk 0:00:27.5]} 0-1

[Event "Late-Titled-Tuesday-Blitz-April-30-2024"]
[Site "Chess.com"]
[Date "2024.04.30"]
[Round "1"]
[White "Balla_Tamas"]
[Black "Msb2"]
[Result "0-1"]
[WhiteElo "2518"]
[BlackElo "3043"]
[TimeControl "180+1"]
[EndTime "14:05:44 PDT"]
[Termination "Msb2 won by resignation"]

1. e4 {[%clk 0:02:59.9]} 1... e6 {[%clk 0:03:00.3]} 2. d4 {[%clk 0:03:00]} 2...
d5 {[%clk 0:03:01]} 3. Nd2 {[%clk 0:03:00.7]} 3... c5 {[%clk 0:03:00.8]} 4. exd5
{[%clk 0:03:00.7]} 4... Qxd5 {[%clk 0:03:01.7]} 5. Ngf3 {[%clk 0:03:00.8]} 5...
cxd4 {[%clk 0:03:02.3]} 6. Bc4 {[%clk 0:03:01.5]} 6... Qd6 {[%clk 0:03:03.1]} 7.
O-O {[%clk 0:03:01.4]} 7... Nf6 {[%clk 0:03:03.9]} 8. Nb3 {[%clk 0:03:01.8]}
8... Nc6 {[%clk 0:03:04.6]} 9. Nbxd4 {[%clk 0:03:02.1]} 9... Nxd4 {[%clk
0:03:05.5]} 10. Nxd4 {[%clk 0:03:02.9]} 10... Be7 {[%clk 0:03:05.8]} 11. c3
{[%clk 0:03:01.1]} 11... O-O {[%clk 0:03:06.1]} 12. Bb3 {[%clk 0:03:01.1]} 12...
e5 {[%clk 0:03:02.1]} 13. Nf3 {[%clk 0:02:43.4]} 13... Qc7 {[%clk 0:03:01.4]}
14. h3 {[%clk 0:02:40.4]} 14... e4 {[%clk 0:02:55.3]} 15. Nd4 {[%clk 0:02:37.5]}
15... h6 {[%clk 0:02:55.4]} 16. Re1 {[%clk 0:02:37.3]} 16... Bc5 {[%clk
0:02:54.9]} 17. Be3 {[%clk 0:02:30.8]} 17... a6 {[%clk 0:02:54]} 18. Qe2 {[%clk
0:02:26.5]} 18... Re8 {[%clk 0:02:53.5]} 19. Rad1 {[%clk 0:02:25.4]} 19... b5
{[%clk 0:02:46.8]} 20. a4 {[%clk 0:02:20.6]} 20... bxa4 {[%clk 0:02:44.4]} 21.
Bxa4 {[%clk 0:02:20.8]} 21... Bd7 {[%clk 0:02:44]} 22. Qc4 {[%clk 0:01:55.2]}
22... Bxa4 {[%clk 0:02:42]} 23. Qxa4 {[%clk 0:01:55.4]} 23... Nd5 {[%clk
0:02:29.3]} 24. Qc4 {[%clk 0:01:32.1]} 24... Nxe3 {[%clk 0:02:23]} 25. Rxe3
{[%clk 0:01:33]} 25... Qb6 {[%clk 0:02:15.8]} 26. b4 {[%clk 0:01:22.7]} 26...
Bxd4 {[%clk 0:02:16.2]} 27. Rxd4 {[%clk 0:01:20.5]} 27... Rac8 {[%clk
0:02:09.1]} 28. Qd5 {[%clk 0:01:10.6]} 28... Rcd8 {[%clk 0:01:45]} 29. Rexe4
{[%clk 0:01:08.5]} 29... Rxd5 {[%clk 0:01:45.3]} 30. Rxe8+ {[%clk 0:01:08.7]}
30... Kh7 {[%clk 0:01:46]} 31. Rxd5 {[%clk 0:01:09.2]} 31... Qc6 {[%clk
0:01:46.6]} 32. Rdd8 {[%clk 0:00:41.4]} 32... Qxc3 {[%clk 0:01:46.6]} 33. Rh8+
{[%clk 0:00:41.4]} 33... Kg6 {[%clk 0:01:47.1]} 34. Rd6+ {[%clk 0:00:41.2]}
34... f6 {[%clk 0:01:47.4]} 35. Re8 {[%clk 0:00:34.9]} 35... Qc1+ {[%clk
0:01:28.7]} 36. Kh2 {[%clk 0:00:20.4]} 36... Qf4+ {[%clk 0:01:28.9]} 0-1

[Event "Late-Titled-Tuesday-Blitz-April-30-2024"]
[Site "Chess.com"]
[Date "2024.04.30"]
[Round "1"]
[White "FedaMaster"]
[Black "crosky"]
[Result "1-0"]
[WhiteElo "2641"]
[BlackElo "2342"]
[TimeControl "180+1"]
[EndTime "14:05:47 PDT"]
[Termination "FedaMaster won by resignation"]

1. d4 {[%clk 0:02:59.7]} 1... Nf6 {[%clk 0:02:59.1]} 2. Nf3 {[%clk 0:02:50.5]}
2... e6 {[%clk 0:02:59.1]} 3. b3 {[%clk 0:02:45.5]} 3... b6 {[%clk 0:02:58.3]}
4. Bb2 {[%clk 0:02:45.1]} 4... Bb7 {[%clk 0:02:59.2]} 5. Nbd2 {[%clk 0:02:41.8]}
5... c5 {[%clk 0:02:57.1]} 6. e3 {[%clk 0:02:38.4]} 6... Be7 {[%clk 0:02:56.3]}
7. a3 {[%clk 0:02:36.6]} 7... O-O {[%clk 0:02:56.4]} 8. Bd3 {[%clk 0:02:32.8]}
8... d6 {[%clk 0:02:54.1]} 9. O-O {[%clk 0:02:32.1]} 9... Nbd7 {[%clk
0:02:53.7]} 10. Qe2 {[%clk 0:02:29]} 10... h6 {[%clk 0:02:53.2]} 11. Rfd1 {[%clk
0:02:25.9]} 11... Qc7 {[%clk 0:02:51.9]} 12. Rac1 {[%clk 0:02:24.3]} 12... Rfe8
{[%clk 0:02:51.2]} 13. h3 {[%clk 0:02:16.2]} 13... Rac8 {[%clk 0:02:49]} 14. c4
{[%clk 0:02:10.1]} 14... Qb8 {[%clk 0:02:45]} 15. Bb1 {[%clk 0:02:09.5]} 15...
cxd4 {[%clk 0:02:35.1]} 16. Nxd4 {[%clk 0:02:04.6]} 16... Nc5 {[%clk 0:02:24]}
17. f3 {[%clk 0:01:59.4]} 17... d5 {[%clk 0:02:17.2]} 18. cxd5 {[%clk
0:01:52.3]} 18... Nxd5 {[%clk 0:02:16.1]} 19. Ba1 {[%clk 0:01:46.2]} 19... Bf6
{[%clk 0:02:12.9]} 20. b4 {[%clk 0:01:43.7]} 20... Na4 {[%clk 0:02:10.9]} 21.
Ne4 {[%clk 0:01:44.4]} 21... Be5 {[%clk 0:01:57.4]} 22. f4 {[%clk 0:01:37.9]}
22... Bc7 {[%clk 0:01:37.3]} 23. Qg4 {[%clk 0:01:28.9]} 23... Nxe3 {[%clk
0:01:21]} 24. Nf6+ {[%clk 0:00:41.2]} 24... Kh8 {[%clk 0:01:21]} 25. Qh5 {[%clk
0:00:37.5]} 25... Nxd1 {[%clk 0:00:58.8]} 26. Nxe8 {[%clk 0:00:37.5]} 26... Rxe8
{[%clk 0:00:52.6]} 27. Nc6 {[%clk 0:00:37.8]} 27... Bxc6 {[%clk 0:00:48.8]} 28.
Qxh6+ {[%clk 0:00:37.4]} 1-0

[Event "Late-Titled-Tuesday-Blitz-April-30-2024"]
[Site "Chess.com"]
[Date "2024.04.30"]
[Round "1"]
[White "Mugiwara2b"]
[Black "Vincefm"]
[Result "1-0"]
[WhiteElo "2617"]
[BlackElo "2280"]
[TimeControl "180+1"]
[EndTime "14:05:56 PDT"]
[Termination "Mugiwara2b won by checkmate"]

1. e4 {[%clk 0:03:00.9]} 1... e5 {[%clk 0:02:56.7]} 2. Nf3 {[%clk 0:02:59.1]}
2... Nc6 {[%clk 0:02:56.7]} 3. Bb5 {[%clk 0:02:56.3]} 3... a6 {[%clk 0:02:55.9]}
4. Ba4 {[%clk 0:02:57]} 4... d6 {[%clk 0:02:54.2]} 5. Bxc6+ {[%clk 0:02:49.7]}
5... bxc6 {[%clk 0:02:53.2]} 6. d4 {[%clk 0:02:50.6]} 6... exd4 {[%clk
0:02:52.2]} 7. Qxd4 {[%clk 0:02:51.5]} 7... Nf6 {[%clk 0:02:50.7]} 8. O-O {[%clk
0:02:49.7]} 8... Be7 {[%clk 0:02:50.5]} 9. c4 {[%clk 0:02:48.9]} 9... O-O {[%clk
0:02:49.2]} 10. Nc3 {[%clk 0:02:47.1]} 10... Nd7 {[%clk 0:02:49]} 11. Bf4 {[%clk
0:02:41]} 11... Bf6 {[%clk 0:02:48.8]} 12. Qd2 {[%clk 0:02:40.2]} 12... Re8
{[%clk 0:02:47.3]} 13. Rfe1 {[%clk 0:02:40.2]} 13... Ne5 {[%clk 0:01:55.9]} 14.
Nxe5 {[%clk 0:02:29.8]} 14... Bxe5 {[%clk 0:01:56.8]} 15. Bxe5 {[%clk
0:02:24.7]} 15... Rxe5 {[%clk 0:01:57.7]} 16. f4 {[%clk 0:02:23.8]} 16... Re8
{[%clk 0:01:56.7]} 17. c5 {[%clk 0:02:16.4]} 17... Bb7 {[%clk 0:01:43.8]} 18.
Rad1 {[%clk 0:02:13.3]} 18... d5 {[%clk 0:01:35.4]} 19. exd5 {[%clk 0:02:12.9]}
19... Rxe1+ {[%clk 0:01:35.5]} 20. Rxe1 {[%clk 0:02:04.5]} 20... cxd5 {[%clk
0:01:36.4]} 21. Re5 {[%clk 0:02:00.8]} 21... c6 {[%clk 0:01:31.4]} 22. Qd4
{[%clk 0:01:58.3]} 22... Qd7 {[%clk 0:01:28.3]} 23. Rg5 {[%clk 0:01:52.6]} 23...
f5 {[%clk 0:01:19]} 24. Ne2 {[%clk 0:01:41.2]} 24... h6 {[%clk 0:00:40.2]} 25.
Rg6 {[%clk 0:01:34.2]} 25... Re8 {[%clk 0:00:39.7]} 26. Ng3 {[%clk 0:01:31.5]}
26... a5 {[%clk 0:00:26.4]} 27. Nxf5 {[%clk 0:01:25.8]} 27... Re7 {[%clk
0:00:12]} 28. Nxe7+ {[%clk 0:01:13]} 28... Qxe7 {[%clk 0:00:12.9]} 29. Qe5
{[%clk 0:01:12.4]} 29... Qh4 {[%clk 0:00:11.5]} 30. Qxg7# {[%clk 0:01:12.5]} 1-0

[Event "Late-Titled-Tuesday-Blitz-April-30-2024"]
[Site "Chess.com"]
[Date "2024.04.30"]
[Round "1"]
[White "TangerineandLemon25"]
[Black "realburq"]
[Result "1-0"]
[WhiteElo "2676"]
[BlackElo "2380"]
[TimeControl "180+1"]
[EndTime "14:05:58 PDT"]
[Termination "TangerineandLemon25 won by resignation"]

1. e4 {[%clk 0:03:00.9]} 1... e5 {[%clk 0:02:57.1]} 2. Nf3 {[%clk 0:03:01]} 2...
Nc6 {[%clk 0:02:54.9]} 3. Bc4 {[%clk 0:03:01.5]} 3... Be7 {[%clk 0:02:51.1]} 4.
Nc3 {[%clk 0:02:58.6]} 4... Nf6 {[%clk 0:02:50.4]} 5. a4 {[%clk 0:02:57.7]} 5...
d6 {[%clk 0:02:45.6]} 6. h3 {[%clk 0:02:55.5]} 6... O-O {[%clk 0:02:44.1]} 7. d4
{[%clk 0:02:53.6]} 7... exd4 {[%clk 0:02:38.3]} 8. Nxd4 {[%clk 0:02:54.5]} 8...
Bd7 {[%clk 0:02:24.4]} 9. Be3 {[%clk 0:02:51.6]} 9... Nxd4 {[%clk 0:02:23.2]}
10. Qxd4 {[%clk 0:02:52.5]} 10... Bc6 {[%clk 0:02:20.8]} 11. O-O-O {[%clk
0:02:49.3]} 11... a6 {[%clk 0:02:15.3]} 12. Nd5 {[%clk 0:02:42.2]} 12... b5
{[%clk 0:02:00.4]} 13. Bb3 {[%clk 0:02:31.5]} 13... bxa4 {[%clk 0:01:54.9]} 14.
Bxa4 {[%clk 0:02:29.4]} 14... Bxa4 {[%clk 0:01:51.7]} 15. Qxa4 {[%clk
0:02:30.3]} 15... Nxd5 {[%clk 0:01:49.8]} 16. exd5 {[%clk 0:02:31.2]} 16... Bf6
{[%clk 0:01:48.5]} 17. Rhe1 {[%clk 0:02:30]} 17... Re8 {[%clk 0:01:34.5]} 18.
Bd4 {[%clk 0:02:26.9]} 18... Rxe1 {[%clk 0:01:28.5]} 19. Rxe1 {[%clk 0:02:26.1]}
19... h6 {[%clk 0:01:27.2]} 20. Be3 {[%clk 0:02:19]} 20... Rb8 {[%clk
0:01:23.9]} 21. c3 {[%clk 0:02:17.8]} 21... Qc8 {[%clk 0:01:18.2]} 22. Ba7
{[%clk 0:02:13]} 22... Ra8 {[%clk 0:01:13.1]} 23. Be3 {[%clk 0:02:10.2]} 23...
Rb8 {[%clk 0:01:11]} 24. Qc6 {[%clk 0:01:53]} 24... Qf5 {[%clk 0:00:59.6]} 25.
Qxc7 {[%clk 0:01:45.2]} 25... Rc8 {[%clk 0:00:51]} 26. Qa5 {[%clk 0:01:43.4]}
26... Qd3 {[%clk 0:00:21.9]} 27. Bd2 {[%clk 0:01:33.8]} 27... Rb8 {[%clk
0:00:16.7]} 28. Qa4 {[%clk 0:01:15]} 28... Rxb2 {[%clk 0:00:14.2]} 29. Re8+
{[%clk 0:01:14.1]} 29... Kh7 {[%clk 0:00:13.4]} 30. Kxb2 {[%clk 0:01:14.7]}
30... Qxd2+ {[%clk 0:00:12.7]} 31. Qc2+ {[%clk 0:01:15.3]} 31... Qxc2+ {[%clk
0:00:10.5]} 32. Kxc2 {[%clk 0:01:16.2]} 1-0

[Event "Late-Titled-Tuesday-Blitz-April-30-2024"]
[Site "Chess.com"]
[Date "2024.04.30"]
[Round "1"]
[White "th3d4rkness"]
[Black "toninhojit"]
[Result "0-1"]
[WhiteElo "2165"]
[BlackElo "2564"]
[TimeControl "180+1"]
[EndTime "14:06:00 PDT"]
[Termination "toninhojit won by resignation"]

1. e4 {[%clk 0:02:57.5]} 1... g6 {[%clk 0:02:57.2]} 2. d4 {[%clk 0:02:56.6]}
2... Bg7 {[%clk 0:02:56.2]} 3. Nc3 {[%clk 0:02:56.7]} 3... d6 {[%clk 0:02:56.7]}
4. Be3 {[%clk 0:02:56.7]} 4... c6 {[%clk 0:02:57.1]} 5. Qd2 {[%clk 0:02:57.2]}
5... b5 {[%clk 0:02:57.5]} 6. f3 {[%clk 0:02:47.1]} 6... Nd7 {[%clk 0:02:56.1]}
7. Nge2 {[%clk 0:02:41.5]} 7... Nb6 {[%clk 0:02:56.3]} 8. Nc1 {[%clk 0:02:41.3]}
8... e6 {[%clk 0:02:53.2]} 9. a3 {[%clk 0:02:36.3]} 9... a6 {[%clk 0:02:49.6]}
10. Be2 {[%clk 0:02:33.8]} 10... h5 {[%clk 0:02:48.1]} 11. O-O {[%clk 0:02:32]}
11... Ne7 {[%clk 0:02:48.4]} 12. h3 {[%clk 0:02:30.5]} 12... d5 {[%clk
0:02:48.8]} 13. Nb3 {[%clk 0:02:22.8]} 13... O-O {[%clk 0:02:39.2]} 14. Nc5
{[%clk 0:02:22]} 14... Nd7 {[%clk 0:02:34.8]} 15. Nxd7 {[%clk 0:02:06.4]} 15...
Bxd7 {[%clk 0:02:35.7]} 16. exd5 {[%clk 0:02:01.8]} 16... exd5 {[%clk
0:02:34.6]} 17. Bh6 {[%clk 0:02:00.5]} 17... Nf5 {[%clk 0:02:33]} 18. Bxg7
{[%clk 0:02:00.5]} 18... Kxg7 {[%clk 0:02:33.9]} 19. Rad1 {[%clk 0:01:53.4]}
19... Qf6 {[%clk 0:02:29.8]} 20. Na2 {[%clk 0:01:42.7]} 20... Rae8 {[%clk
0:02:29.7]} 21. Rfe1 {[%clk 0:01:39.8]} 21... Ne3 {[%clk 0:02:24.9]} 22. Rc1
{[%clk 0:01:37.9]} 22... Qg5 {[%clk 0:02:14]} 23. Bf1 {[%clk 0:01:35.3]} 23...
Bxh3 {[%clk 0:02:09.8]} 24. Rxe3 {[%clk 0:01:19.8]} 24... Rxe3 {[%clk
0:02:06.7]} 25. f4 {[%clk 0:01:14]} 25... Qxf4 {[%clk 0:02:00.8]} 26. Re1 {[%clk
0:01:10.9]} 26... Rfe8 {[%clk 0:01:55.2]} 27. Rxe3 {[%clk 0:01:10.5]} 27... Rxe3
{[%clk 0:01:56.1]} 28. Nb4 {[%clk 0:00:57.1]} 28... Bd7 {[%clk 0:01:52.8]} 29.
c3 {[%clk 0:00:49.4]} 29... h4 {[%clk 0:01:40.6]} 30. Qf2 {[%clk 0:00:43.3]}
30... Qxf2+ {[%clk 0:01:36.7]} 31. Kxf2 {[%clk 0:00:43.1]} 31... Re4 {[%clk
0:01:32.2]} 32. Nxa6 {[%clk 0:00:42.7]} 32... Rf4+ {[%clk 0:01:31.4]} 33. Kg1
{[%clk 0:00:42.1]} 33... g5 {[%clk 0:01:28.9]} 34. Nc5 {[%clk 0:00:40.9]} 34...
Bc8 {[%clk 0:01:29.4]} 35. a4 {[%clk 0:00:38.8]} 35... bxa4 {[%clk 0:01:27.5]}
36. Nxa4 {[%clk 0:00:39]} 36... Re4 {[%clk 0:01:26]} 37. Nc5 {[%clk 0:00:37.9]}
37... Re1 {[%clk 0:01:25.2]} 38. Kf2 {[%clk 0:00:36.9]} 38... Rb1 {[%clk
0:01:25.2]} 39. b4 {[%clk 0:00:32.2]} 39... Rb2+ {[%clk 0:01:24.6]} 40. Kf3
{[%clk 0:00:31]} 40... g4+ {[%clk 0:01:14.3]} 41. Kf4 {[%clk 0:00:30]} 41...
Rf2+ {[%clk 0:01:14.3]} 0-1